bitfinex-derivatives/quotes_SOLF0:USTF0_20250904
["timestamp","ask_amount","ask_price","bid_price","bid_amount"]
[1757026300917,0.03470508,203.51,203.47,1.5283643]
[1757026301428,0.03470508,203.51,203.48,7.51]
[1757026301628,0.03470508,203.51,203.47,1.5283643]
[1757026302030,0.03470508,203.51,203.48,7.51]
[1757026302228,0.03470508,203.51,203.47,1.5283643]
[1757026302425,0.03470508,203.51,203.44,120.28]
[1757026302622,0.03470508,203.51,203.48,1.5283643]
[1757026302824,0.03470508,203.51,203.49,7.51]
[1757026303029,0.03470508,203.51,203.48,1.5283643]
[1757026303224,0.03470508,203.51,203.49,7.51]
[1757026303429,0.03470508,203.51,203.48,1.5283643]
[1757026304226,0.03470508,203.51,203.44,120.28]
[1757026304227,0.03470508,203.51,203.5,7.51]
[1757026304528,0.03470508,203.51,203.5,127.93]
[1757026306232,0.03470508,203.51,203.5,7.51]
[1757026306427,0.03470508,203.51,203.5,127.93]
[1757026307132,0.03470508,203.51,203.5,129.4583643]
[1757026309632,0.03470508,203.51,203.5,127.93]
[1757026311233,0.03470508,203.51,203.5,120.34]
[1757026311732,0.03470508,203.51,203.5,127.97]
[1757026316139,0.03470508,203.51,203.5,120.3]
[1757026316335,0.03470508,203.51,203.45,7.63]
[1757026316336,1.56306938,203.51,203.45,7.63]
[1757026316541,7.54,203.48,203.46,120.28]
[1757026316833,0.03470508,203.51,203.47,7.63]
[1757026317438,0.03470508,203.51,203.46,120.28]
[1757026317639,0.03470508,203.51,203.47,7.63]
[1757026318036,0.03470508,203.51,203.46,120.28]
[1757026318232,0.03470508,203.51,203.47,7.63]
[1757026318437,0.03470508,203.51,203.46,120.28]
[1757026318633,0.03470508,203.51,203.5,9.1583643]
[1757026318838,0.03470508,203.51,203.5,129.5383643]
[1757026319141,1.5283643,203.61,203.51,7.63]
[1757026319342,9.0683643,203.62,203.55,9.1583643]
[1757026319640,7.54,203.62,203.57,1.5283643]
[1757026319841,7.54,203.62,203.58,113.89]
[1757026320441,7.54,203.62,203.58,113.92289824]
[1757026320842,1.5283643,203.64,203.58,113.92289824]
[1757026321034,9.0683643,203.64,203.58,113.92289824]
[1757026322740,1.5283643,203.66,203.59,9.1583643]
[1757026323446,1.5283643,203.66,203.59,5.9484643]
[1757026323640,7.54,203.67,203.62,7.63]
[1757026323843,1.5283643,203.68,203.63,120.58]
[1757026324049,7.54,203.7,203.63,120.58]
[1757026324050,9.0683643,203.7,203.63,120.58]
[1757026324241,9.0683643,203.7,203.63,128.24578035]
[1757026325246,9.0683643,203.7,203.63,129.77414465]
[1757026326848,34.48,203.74,203.64,7.63]
[1757026326849,1.5283643,203.72,203.64,7.63]
[1757026328048,1.5283643,203.7,203.64,7.63]
[1757026328353,7.54,203.68,203.65,128.19]
[1757026328544,9.0683643,203.68,203.65,128.19]
[1757026328745,9.0683643,203.68,203.65,128.22274015]
[1757026330545,1.5283643,203.69,203.65,120.59274015]
[1757026330747,1.5283643,203.69,203.66,7.63]
[1757026330949,9.0683643,203.69,203.66,7.63]
[1757026331251,7.54,203.69,203.66,7.63]
[1757026331445,9.0683643,203.69,203.66,7.63]
[1757026331947,7.54,203.68,203.65,120.57586406]
[1757026332349,7.54,203.77,203.66,7.63]
[1757026332545,1.5283643,203.7,203.65,120.57586406]
[1757026332746,1.5283643,203.7,203.66,7.63]
[1757026332950,7.54,203.73,203.66,7.63]
[1757026332951,1.5283643,203.72,203.66,7.63]
[1757026333252,1.5283643,203.7,203.66,7.63]
[1757026333452,9.0683643,203.7,203.66,7.63]
[1757026333653,9.0683643,203.7,203.65,120.556872]
[1757026333849,9.0683643,203.7,203.66,7.63]
[1757026334350,1.5283643,203.7,203.66,7.63]
[1757026334655,7.54,203.69,203.66,7.63]
[1757026335756,7.54,203.67,203.65,0.036872]
[1757026335955,1.5283643,203.68,203.65,7.666872]
[1757026336153,1.5283643,203.68,203.65,7.63]
[1757026337850,9.4083643,203.68,203.65,7.63]
[1757026338047,7.88,203.67,203.64,0.03392568]
[1757026338247,1.5283643,203.68,203.64,0.03392568]
[1757026338450,7.88,203.65,203.64,0.03392568]
[1757026338958,7.88,203.65,203.58,77.5983643]
[1757026339156,1.5283643,203.64,203.62,0.032744]
[1757026339657,7.88,203.65,203.62,0.032744]
[1757026343551,7.88,203.77,203.62,7.682744]
[1757026343750,10.26823681,203.7,203.62,7.682744]
[1757026343955,10.26823681,203.7,203.62,7.65]
[1757026344156,10.26823681,203.7,203.64,0.03251281]
[1757026346359,10.26823681,203.7,203.64,7.68251281]
[1757026357274,7.88,203.75,203.64,7.68251281]
[1757026357578,7.88,203.75,203.65,7.65]
[1757026363581,7.88,203.75,203.67,7.65]
[1757026363876,7.88,203.75,203.67,2.38823681]
[1757026364075,7.88,203.75,203.68,7.65]
[1757026364271,7.88,203.75,203.69,0.03495936]
[1757026365278,7.88,203.75,203.69,7.68495936]
[1757026365875,7.88,203.8,203.69,7.68495936]
[1757026375192,124.0,203.79,203.69,7.68495936]
[1757026375394,7.61,203.78,203.69,7.68495936]
[1757026388305,7.61,203.78,203.7,8.07]
[1757026388706,7.61,203.78,203.71,8.07]
[1757026391408,2.38823681,203.81,203.71,8.07]
[1757026391597,2.38823681,203.81,203.71,44.31]
[1757026392003,129.48841299,203.85,203.74,0.03771638]
[1757026392305,9.99823681,203.84,203.74,8.10771638]
[1757026392606,2.38823681,203.81,203.74,8.07]
[1757026392801,7.61,203.8,203.74,8.07]
[1757026393105,7.61,203.8,203.78,8.07]
[1757026394006,7.61,203.83,203.78,8.07]
[1757026394202,2.38823681,203.84,203.78,8.07]
[1757026394505,2.38823681,203.84,203.77,8.1046157]
[1757026394506,7.61,203.83,203.77,8.1046157]
[1757026399502,8.13,203.81,203.77,8.1046157]
[1757026399702,8.13,203.79,203.77,0.0346157]
[1757026399901,1.52586303,203.8,203.77,0.0346157]
[1757026400106,9.65586303,203.82,203.78,7.6]
[1757026400305,9.65586303,203.82,203.77,0.0346157]
[1757026400607,1.52586303,203.82,203.78,7.6]
[1757026400809,1.52586303,203.84,203.78,7.6]
[1757026402109,1.52586303,203.86,203.8,7.6]
[1757026402703,1.52586303,203.86,203.81,0.03283458]
[1757026402905,8.13,203.85,203.82,7.6]
[1757026403508,8.13,203.85,203.81,0.03283458]
[1757026403509,8.13,203.85,203.81,7.63283458]
[1757026403909,1.52586303,203.84,203.81,0.03283458]
[1757026404109,8.13,203.83,203.81,7.63283458]
[1757026404306,8.13,203.83,203.81,0.03283458]
[1757026405706,1.52586303,203.84,203.81,0.03283458]
[1757026405913,9.65586303,203.82,203.81,0.03283458]
[1757026409318,9.65586303,203.82,203.72,7.6]
[1757026409517,1.52586303,203.78,203.72,7.6]
[1757026410114,1.52586303,203.76,203.71,7.6]
[1757026410617,1.52586303,203.76,203.7,1.52586303]
[1757026410815,1.52586303,203.76,203.71,7.6]
[1757026411016,1.52586303,203.76,203.7,1.52586303]
[1757026411412,1.52586303,203.76,203.71,7.6]
[1757026411719,1.52586303,203.76,203.7,1.52586303]
[1757026412019,1.52586303,203.76,203.71,7.6]
[1757026412414,8.13,203.84,203.71,7.6]
[1757026412617,8.13,203.84,203.74,9.12586303]
[1757026412810,1.52586303,203.86,203.79,7.6]
[1757026413416,8.13,203.87,203.79,7.6]
[1757026413716,1.52586303,203.86,203.79,7.6]
[1757026417223,1.52586303,203.86,203.8,1.52586303]
[1757026418024,1.52586303,203.86,203.79,7.6]
[1757026418925,8.13,203.85,203.79,7.6]
[1757026420525,8.13,203.79,203.75,7.6]
[1757026420725,8.13,203.79,203.73,1.52586303]
[1757026420924,8.23261948,203.9,203.71,1.52586303]
[1757026420925,1.52586303,203.78,203.71,1.52586303]
[1757026421124,1.52586303,203.78,203.72,7.6]
[1757026427422,1.52586303,203.78,203.73,1.52586303]
[1757026427829,1.52586303,203.78,203.74,8.01]
[1757026428222,1.52586303,203.78,203.73,1.52586303]
[1757026428828,1.52586303,203.78,203.74,8.01]
[1757026429030,1.52586303,203.78,203.73,1.52586303]
[1757026430030,7.94,203.79,203.74,8.01]
[1757026430230,7.94,203.78,203.75,8.01]
[1757026431726,7.94,203.78,203.73,1.52586303]
[1757026431727,1.52586303,203.8,203.74,8.01]
[1757026431930,7.94,203.85,203.74,8.01]
[1757026432137,7.94,203.84,203.77,1.52586303]
[1757026433833,1.52586303,203.81,203.76,8.01]
[1757026434034,7.94,203.76,203.72,8.01]
[1757026435336,1.52586303,203.75,203.72,8.01]
[1757026437738,1.52586303,203.75,203.7,4.12791375]
[1757026438434,1.52586303,203.75,203.71,8.01]
[1757026438633,1.52586303,203.75,203.7,4.12791375]
[1757026439040,1.52586303,203.75,203.71,8.01]
[1757026439235,1.52586303,203.75,203.7,4.12791375]
[1757026439431,9.46586303,203.73,203.69,4.12791375]
[1757026439740,9.46586303,203.71,203.67,8.01]
[1757026439938,1.52586303,203.69,203.67,8.01]
[1757026441335,1.52586303,203.69,203.64,4.12791375]
[1757026441535,1.52586303,203.69,203.65,8.01]
[1757026441842,1.52586303,203.69,203.64,4.12791375]
[1757026442242,1.52586303,203.69,203.65,8.01]
[1757026442542,1.52586303,203.69,203.64,4.12791375]
[1757026442743,1.52586303,203.69,203.65,8.01]
[1757026443145,1.52586303,203.69,203.64,8.01]
[1757026444545,1.52586303,203.69,203.63,106.28791375]
[1757026445338,1.52586303,203.69,203.64,8.01]
[1757026445537,1.52586303,203.69,203.63,102.16]
[1757026445736,1.52586303,203.69,203.64,8.01]
[1757026446143,1.52586303,203.69,203.63,121.56]
[1757026446437,1.52586303,203.69,203.63,8.01]
[1757026454161,1.52586303,203.69,203.65,8.01]
[1757026454363,1.52586303,203.69,203.64,57.74]
[1757026454762,1.52586303,203.69,203.65,8.01]
[1757026454963,1.52586303,203.69,203.64,57.74]
[1757026455156,1.52586303,203.69,203.65,8.01]
[1757026455557,1.52586303,203.69,203.64,104.5]
[1757026457355,1.52586303,203.69,203.65,8.01]
[1757026457556,1.52586303,203.69,203.64,104.5]
[1757026458364,7.94,203.71,203.65,7.82]
[1757026458658,1.52586303,203.69,203.64,104.5]
[1757026459361,1.52586303,203.69,203.65,7.82]
[1757026459562,1.52586303,203.69,203.64,104.5]
[1757026459965,1.52586303,203.69,203.65,7.82]
[1757026460463,1.52586303,203.69,203.64,104.5]
[1757026460863,1.52586303,203.69,203.65,7.82]
[1757026461065,1.52586303,203.69,203.64,104.5]
[1757026461361,1.52586303,203.69,203.65,7.82]
[1757026461567,10.32709779,203.71,203.65,7.82]
[1757026463668,7.94,203.71,203.65,7.82]
[1757026463969,10.33709779,203.73,203.65,7.82]
[1757026469561,2.38709779,203.76,203.65,11.93600643]
[1757026469763,2.38709779,203.76,203.67,4.11600643]
[1757026469963,2.38709779,203.76,203.68,4.11600643]
[1757026470166,2.38709779,203.76,203.69,7.82]
[1757026472877,2.38709779,203.76,203.7,7.82]
[1757026473378,7.95,203.8,203.71,7.82]
[1757026482186,316.12,203.87,203.71,12.2375]
[1757026482481,7.95,203.82,203.73,7.82]
[1757026493090,7.95,203.82,203.73,7.87]
[1757026493894,7.95,203.82,203.75,7.87]
[1757026494090,7.95,203.82,203.75,103.95]
[1757026494287,7.95,203.82,203.76,7.87]
[1757026501901,10.33709779,203.82,203.76,7.87]
[1757026502301,7.95,203.82,203.76,7.87]
[1757026506998,7.95,203.82,203.75,7.87]
[1757026507200,7.53,203.87,203.77,7.87]
[1757026508605,7.53,203.87,203.8,7.87]
[1757026509905,7.53,203.87,203.8,12.2855]
[1757026510108,7.53,203.87,203.81,7.87]
[1757026510609,0.03113891,203.86,203.8,4.4155]
[1757026511308,0.03113891,203.86,203.81,7.87]
[1757026512210,0.03113891,203.86,203.82,7.87]
[1757026513309,0.03113891,203.86,203.82,6.80219779]
[1757026513503,0.03113891,203.86,203.83,7.87]
[1757026513899,0.03113891,203.86,203.82,4.4151]
[1757026514100,0.03113891,203.86,203.81,2.38709779]
[1757026514304,0.03113891,203.86,203.83,7.87]
[1757026514506,0.03113891,203.86,203.82,120.32]
[1757026515300,0.03113891,203.86,203.83,7.87]
[1757026515508,0.03113891,203.86,203.82,120.32]
[1757026515902,0.03113891,203.86,203.81,2.38709779]
[1757026516105,0.03113891,203.86,203.83,7.87]
[1757026516502,0.03113891,203.86,203.82,120.3]
[1757026516703,0.03113891,203.86,203.83,7.87]
[1757026516908,0.03113891,203.86,203.82,120.3]
[1757026517704,0.03113891,203.86,203.83,7.4]
[1757026518511,0.03113891,203.86,203.81,2.38709779]
[1757026518710,0.03113891,203.86,203.84,7.4]
[1757026518915,0.03113891,203.86,203.83,120.28]
[1757026519209,0.03113891,203.86,203.84,7.4]
[1757026519410,0.03113891,203.86,203.83,120.28]
[1757026520111,0.03113891,203.86,203.84,7.4]
[1757026520919,0.03113891,203.86,203.83,120.28]
[1757026521213,0.03113891,203.86,203.84,120.2]
[1757026521416,0.03113891,203.86,203.85,7.4]
[1757026525517,0.03113891,203.86,203.85,8.92466036]
[1757026527826,0.03113891,203.86,203.85,129.08466036]
[1757026529219,0.03113891,203.86,203.85,8.92466036]
[1757026529419,0.03113891,203.86,203.85,129.08466036]
[1757026538231,0.03113891,203.86,203.85,129.06466036]
[1757026544536,0.03113891,203.86,203.85,121.66466036]
[1757026544728,1.52466036,203.97,203.83,5.53444094]
[1757026544932,1.52466036,203.97,203.89,1.52466036]
[1757026545129,1.52466036,203.93,203.9,34.42]
[1757026547036,1.52466036,203.95,203.9,34.42]
[1757026547740,1.52466036,203.95,203.9,45.23681149]
[1757026548834,1.52466036,203.93,203.9,0.03681149]
[1757026549635,7.5,203.92,203.9,0.03681149]
[1757026549839,1.52466036,203.93,203.9,0.03681149]
[1757026550041,1.52466036,203.91,203.9,0.03681149]
[1757026550334,9.02466036,203.91,203.9,0.03681149]
[1757026550537,7.5,203.98,203.9,0.03681149]
[1757026550734,5.48841299,203.99,203.9,0.03681149]
[1757026550735,1.52466036,203.94,203.9,0.03681149]
[1757026551041,1.52466036,203.92,203.9,0.03681149]
[1757026551245,7.5,203.91,203.9,0.03681149]
[1757026558148,9.02466036,203.96,203.9,7.96681149]
[1757026558342,9.02466036,203.96,203.9,0.03681149]
[1757026558737,1.52466036,203.94,203.9,0.03681149]
[1757026559142,7.5,203.93,203.9,7.96681149]
[1757026560946,7.5,203.97,203.91,7.93]
[1757026569044,7.5,203.97,203.92,1.52466036]
[1757026569248,7.5,203.97,203.93,7.93]
[1757026569655,7.5,203.97,203.92,1.52466036]
[1757026570355,7.5,204.0,203.93,7.93]
[1757026571150,7.5,204.0,203.94,0.0358413]
[1757026572049,7.5,204.03,203.95,7.93]
[1757026572247,7.5,204.01,203.95,7.93]
[1757026572952,1.52466036,204.02,203.96,0.03220837]
[1757026573157,7.5,204.01,203.96,0.03220837]
[1757026573351,1.52466036,204.02,203.96,0.03220837]
[1757026574757,7.5,204.01,203.96,0.03220837]
[1757026574959,1.52466036,204.02,203.96,0.03220837]
[1757026575452,7.5,204.01,203.96,0.03220837]
[1757026575756,1.52466036,204.02,203.96,0.03220837]
[1757026575948,7.5,204.01,203.96,0.03220837]
[1757026576156,1.52466036,204.02,203.96,0.03220837]
[1757026576356,7.5,204.01,203.96,0.03220837]
[1757026576654,1.52466036,204.02,203.96,0.03220837]
[1757026577055,7.5,204.01,203.96,0.03220837]
[1757026577252,1.52466036,204.02,203.96,0.03220837]
[1757026577456,7.5,204.01,203.96,0.03220837]
[1757026577756,1.52466036,204.02,203.96,0.03220837]
[1757026577958,8.03,204.01,203.96,0.03220837]
[1757026578150,1.52466036,204.02,203.96,0.03220837]
[1757026579058,8.03,204.01,203.96,0.03220837]
[1757026579258,1.52466036,204.02,203.96,0.03220837]
[1757026579454,8.03,204.01,203.96,0.03220837]
[1757026579855,1.52466036,204.02,203.96,0.03220837]
[1757026580055,8.03,204.01,203.96,0.03220837]
[1757026580862,8.03,204.01,203.96,7.97220837]
[1757026581970,1.52466036,204.02,203.96,7.97220837]
[1757026582865,9.55466036,204.02,203.96,7.97220837]
[1757026583563,8.03,204.02,203.96,7.97220837]
[1757026584866,8.03,204.02,203.96,0.03220837]
[1757026587664,8.03,204.02,203.96,7.97220837]
[1757026588359,124.85341181,204.07,203.96,7.97220837]
[1757026588664,8.03,204.07,203.96,7.97220837]
[1757026589072,132.03,204.07,203.96,7.97220837]
[1757026592373,132.03,204.07,203.98,7.94]
[1757026592667,8.03,204.07,203.98,7.94]
[1757026593065,8.03,204.07,204.0,0.03116219]
[1757026593271,8.03,204.07,204.01,7.94]
[1757026595768,8.03,204.07,204.0,0.03116219]
[1757026604086,8.03,204.07,204.01,7.94]
[1757026608581,8.06,204.11,204.01,7.94]
[1757026609186,8.06,204.11,204.04,0.03594083]
[1757026614579,8.06,204.14,204.08,2.38004221]
[1757026614785,8.06,204.18,204.09,7.95]
[1757026615380,8.06,204.18,204.11,0.03161209]
[1757026616787,8.06,204.18,204.11,7.98161209]
[1757026617388,8.06,204.18,204.12,7.95]
[1757026618983,8.06,204.23,204.13,7.95]
[1757026619590,8.06,204.23,204.16,0.03354196]
[1757026620998,8.06,204.3,204.17,7.95]
[1757026621492,8.06,204.28,204.17,7.95]
[1757026621694,8.06,204.28,204.21,0.03569696]
[1757026623792,121.98,204.27,204.21,0.03569696]
[1757026623988,8.06,204.26,204.21,0.03569696]
[1757026624788,8.06,204.28,204.21,0.03569696]
[1757026625093,121.92,204.27,204.21,0.03569696]
[1757026625296,129.98,204.28,204.21,0.03569696]
[1757026627195,121.92,204.27,204.21,0.03569696]
[1757026627490,8.06,204.28,204.21,0.03569696]
[1757026629295,8.06,204.28,204.22,7.95]
[1757026629494,0.17142,204.34,204.21,0.03569696]
[1757026629495,8.06,204.33,204.26,2.38004221]
[1757026629695,8.06,204.33,204.27,7.95]
[1757026630096,8.06,204.33,204.28,0.03764344]
[1757026630300,0.17142,204.34,204.29,10.33004221]
[1757026630502,8.23142,204.34,204.29,10.33004221]
[1757026630798,8.06,204.33,204.29,10.33004221]
[1757026631595,8.06,204.33,204.3,7.95]
[1757026632398,8.06,204.33,204.28,0.03764344]
[1757026632797,0.17142,204.34,204.28,0.03764344]
[1757026633000,8.06,204.33,204.28,0.03764344]
[1757026633193,0.17142,204.34,204.28,0.03764344]
[1757026633399,124.0,204.33,204.28,0.03764344]
[1757026633596,8.06,204.33,204.28,0.03764344]
[1757026634100,124.17142,204.34,204.28,0.03764344]
[1757026634602,8.23142,204.34,204.28,0.03764344]
[1757026635400,8.23142,204.34,204.28,10.36768565]
[1757026636194,0.17142,204.34,204.28,2.41768565]
[1757026636398,0.17142,204.34,204.29,7.95]
[1757026637706,8.06,204.38,204.29,7.95]
[1757026638301,7.43,204.42,204.29,7.95]
[1757026638896,7.43,204.42,204.33,0.03125763]
[1757026640902,9.81004221,204.42,204.33,0.03125763]
[1757026641102,10.66194982,204.42,204.33,0.03125763]
[1757026641303,7.43,204.4,204.33,0.03125763]
[1757026643412,7.43,204.4,204.33,7.74125763]
[1757026643916,124.0,204.43,204.36,10.09004221]
[1757026644117,7.43,204.44,204.36,10.09004221]
[1757026644315,0.18503,204.45,204.37,7.71]
[1757026644514,7.61503,204.45,204.38,0.03628872]
[1757026645417,7.61503,204.45,204.39,1.51746926]
[1757026645812,7.61503,204.45,204.38,0.03628872]
[1757026646811,9.13249926,204.45,204.38,0.03628872]
[1757026647217,124.0,204.44,204.38,0.03628872]
[1757026647419,7.43,204.43,204.38,0.03628872]
[1757026647616,7.43,204.41,204.38,0.03628872]
[1757026647817,121.42,204.42,204.38,0.03628872]
[1757026648020,7.43,204.41,204.38,0.03628872]
[1757026649023,124.0,204.44,204.38,0.03628872]
[1757026649323,252.79,204.44,204.38,0.03628872]
[1757026649524,131.43,204.44,204.38,1.55375798]
[1757026650317,7.43,204.44,204.41,1.51746926]
[1757026650718,0.18503,204.45,204.38,7.74628872]
[1757026650719,0.18503,204.45,204.43,9.22746926]
[1757026651729,124.0,204.5,204.44,7.71]
[1757026651927,11.0,204.52,204.47,1.51746926]
[1757026652222,7.43,204.51,204.47,1.51746926]
[1757026652431,11.0,204.52,204.47,0.03489929]
[1757026652819,7.43,204.51,204.47,0.03489929]
[1757026653023,11.0,204.52,204.47,0.03489929]
[1757026653227,7.43,204.51,204.47,0.03489929]
[1757026653525,124.0,204.5,204.47,0.03489929]
[1757026653729,7.43,204.49,204.47,0.03489929]
[1757026654724,11.0,204.52,204.47,0.03489929]
[1757026654725,135.0,204.52,204.47,7.74489929]
[1757026654923,11.0,204.52,204.47,0.03489929]
[1757026655126,11.0,204.52,204.49,1.51746926]
[1757026655326,11.0,204.52,204.49,9.22746926]
[1757026655830,11.0,204.52,204.47,9.26236855]
[1757026656225,11.0,204.52,204.47,7.74489929]
[1757026656534,7.43,204.51,204.47,0.03489929]
[1757026657033,11.0,204.52,204.47,0.03489929]
[1757026657732,7.43,204.51,204.47,0.03489929]
[1757026658430,11.0,204.52,204.47,0.03489929]
[1757026659025,7.43,204.51,204.47,0.03489929]
[1757026660030,11.0,204.52,204.47,0.03489929]
[1757026660233,11.0,204.52,204.48,7.71]
[1757026662326,11.0,204.52,204.47,0.03489929]
[1757026662535,11.0,204.52,204.48,7.71]
[1757026662735,11.0,204.52,204.5,7.71]
[1757026663527,11.0,204.52,204.47,0.03489929]
[1757026663728,11.0,204.52,204.48,4.20574185]
[1757026664035,11.0,204.52,204.5,7.71]
[1757026664630,11.0,204.52,204.47,3.82667489]
[1757026664829,11.0,204.52,204.48,4.20543532]
[1757026665030,11.0,204.52,204.49,4.20543532]
[1757026665230,11.0,204.52,204.51,7.71]
[1757026665435,11.0,204.52,204.51,11.91543532]
[1757026666128,11.0,204.52,204.51,12.39543532]
[1757026666738,124.0,204.62,204.51,12.39543532]
[1757026666937,124.0,204.62,204.52,4.20543532]
[1757026667132,124.0,204.62,204.53,4.20543532]
[1757026667328,124.0,204.62,204.55,0.03295033]
[1757026667737,7.43,204.63,204.56,7.92]
[1757026667937,7.43,204.63,204.55,0.03295033]
[1757026668137,7.43,204.63,204.56,4.20910118]
[1757026668432,7.43,204.63,204.55,0.03295033]
[1757026668433,7.43,204.63,204.57,4.20770447]
[1757026668632,7.43,204.63,204.55,7.95295033]
[1757026668832,7.43,204.63,204.56,4.20778866]
[1757026669037,7.43,204.63,204.57,4.20778866]
[1757026669232,7.43,204.63,204.55,0.03295033]
[1757026669733,131.43,204.63,204.55,0.03295033]
[1757026670532,131.43,204.63,204.41,7.92]
[1757026670733,0.03541673,204.61,204.43,7.92]
[1757026670938,129.54,204.6,204.45,7.92]
[1757026671134,129.54,204.6,204.46,4.21295226]
[1757026671344,129.64,204.6,204.47,12.13295226]
[1757026671643,7.52,204.59,204.48,4.21295226]
[1757026671931,0.03564643,204.56,204.49,4.21295226]
[1757026672132,0.85091816,204.67,204.51,7.95556695]
[1757026672333,7.52,204.69,204.52,12.13295226]
[1757026672542,7.52,204.69,204.54,7.92]
[1757026672738,7.52,204.69,204.56,7.92]
[1757026673039,7.52,204.69,204.58,7.92]
[1757026673433,7.52,204.69,204.6,0.03551372]
[1757026677331,7.52,204.69,204.61,7.92]
[1757026680438,7.52,204.69,204.6,0.03551372]
[1757026680634,134.52,204.69,204.6,0.03551372]
[1757026680839,7.52,204.69,204.6,7.95551372]
[1757026683146,7.52,204.94,204.68,7.92]
[1757026683346,14.7,205.0,204.68,7.92]
[1757026683347,7.52,204.92,204.68,7.92]
[1757026683548,7.52,204.9,204.68,7.92]
[1757026683750,7.52,204.9,204.78,0.0374001]
[1757026684044,7.52,204.9,204.68,7.92]
[1757026684250,7.52,204.85,204.68,7.92]
[1757026684450,243.8,204.84,204.68,7.92]
[1757026684745,7.52,204.83,204.68,7.92]
[1757026684948,7.52,204.81,204.68,7.92]
[1757026685347,0.03204279,204.77,204.68,7.92]
[1757026685649,0.03204279,204.77,204.73,7.92]
[1757026687046,0.03204279,204.77,204.72,0.03556347]
[1757026687240,0.03204279,204.77,204.73,7.92]
[1757026687644,0.03204279,204.77,204.73,4.3957]
[1757026687847,0.03204279,204.77,204.73,7.92]
[1757026688044,0.03204279,204.77,204.72,0.03556347]
[1757026688045,7.52,204.87,204.75,7.92]
[1757026688839,7.52,204.87,204.63,68.4105]
[1757026689045,14.7,204.91,204.68,11.63067389]
[1757026689348,7.52,204.9,204.75,0.03169253]
[1757026689749,7.52,204.88,204.73,7.92]
[1757026689943,7.52,204.88,204.8,0.03591358]
[1757026692843,7.52,204.86,204.8,0.03591358]
[1757026693351,8.0,204.86,204.8,0.03591358]
[1757026694251,124.84996214,204.92,204.8,0.03591358]
[1757026694252,134.04,204.85,204.8,0.03591358]
[1757026694447,7.52,204.84,204.8,0.03591358]
[1757026695142,134.04,204.85,204.8,0.03591358]
[1757026696250,7.52,204.83,204.8,0.03591358]
[1757026696656,141.4,204.83,204.8,0.03591358]
[1757026697146,7.52,204.83,204.8,0.03591358]
[1757026697550,128.14,204.86,204.8,0.03591358]
[1757026699158,133.52,204.85,204.8,7.50591358]
[1757026699354,7.44,204.84,204.8,7.50591358]
[1757026699547,7.44,204.84,204.69,7.47]
[1757026699751,7.44,204.84,204.62,7.47]
[1757026700056,7.44,204.84,204.61,68.4186]
[1757026700057,7.44,204.82,204.64,7.47]
[1757026700250,7.44,204.82,204.66,7.47]
[1757026700457,7.44,204.8,204.66,7.47]
[1757026700757,7.44,204.78,204.66,7.47]
[1757026700952,7.47684164,204.75,204.66,7.47]
[1757026701453,7.44,204.75,204.66,7.47]
[1757026701654,0.0354736,204.73,204.66,7.47]
[1757026702155,12.96,204.78,204.66,7.47]
[1757026702357,0.03242635,204.72,204.66,7.47]
[1757026703754,0.03242635,204.72,204.68,7.47]
[1757026703958,7.44,204.83,204.7,7.47]
[1757026704158,7.44,204.83,204.71,4.23766727]
[1757026704460,7.44,204.83,204.73,7.47]
[1757026704659,7.44,204.83,204.74,4.23766727]
[1757026704954,7.44,204.83,204.75,4.23766727]